{"text_format":"3","workbook":"xlsx","n_sheets":2,"sheets":["START","BUDSJETTVERKTØY"],"not_rendered":{"defined_names":2},"read":"whole","date_system":"1900"}

{"sheet":"START","index":0,"n_rows":7,"n_cols":2,"rows_kept":7}
[null,"OM DENNE MALEN"]
[null,"Spor førstegangsinvesteringer for nettsted, inntekter og kostnader ved bruk av dette budsjetteringsverktøy for nettsted."]
[null,"Fyll ut firmanavn og dato."]
[null,"Skriv inn detaljene i tabeller for å beregne totaler og evalueringsmåledata automatisk."]
[null,"Obs!  "]
[null,"Flere instruksjoner finnes i kolonne A i regnearket BUDSJETTVERKTØY. Denne teksten har blitt skjult med vilje. Hvis du vil fjerne teksten, velger du kolonne A og deretter SLETT. Hvis du vil vise teksten, velger du kolonne A og endrer skriftfarge."]
[null,"Hvis du vil finne ut mer om tabeller i regnearket, kan du trykke på SKIFT og F10 i en tabell, velge alternativet for TABELL og deretter ALTERNATIV TEKST."]

{"sheet":"BUDSJETTVERKTØY","index":1,"n_rows":43,"n_cols":6,"rows_kept":43,"merged":[[14,1,14,5],[22,1,22,5],[30,1,30,5],[38,1,38,5]]}
["Opprett budsjett for nettsted i dette regnearket. Du finner nyttige instruksjoner om hvordan du bruker dette regnearket, i cellene i denne kolonnen. Trykk på PIL NED for å komme i gang."]
["Skriv inn firmanavn i cellen til høyre.","Firmanavn"]
["Tittelen på dette regnearket finnes i cellen til høyre.","Budsjetteringsverktøy for nettsted"]
["Skriv inn dato i cellen til høyre.","Dato"]
["Tips finnes i cellen til høyre.","Grå celler inneholder beregninger som ikke må endres."]
["Skriv inn detaljer i tabellen Sats som starter i cellen til høyre. Neste instruksjon finnes i celle A10.","Firmadata","Sats"]
[null,"Avkastningskrav",{"v":0.1,"d":"10%"}]
[null,"Skattesats",{"v":0.3,"d":"30%"}]
[]
["Skriv inn detaljer i tabellen InitialInvest som starter i cellen til høyre. Neste instruksjon finnes i celle A16.","Førstegangsinvesteringer for nettsted","ÅR","1","2","3"]
[null,"Maskinvare (f.eks. servere)",{"v":25000,"d":"kr 25,000.00"}]
[null,"Programvare (f.eks. programvare for e-handelkatalog)",{"v":15000,"d":"kr 15,000.00"}]
[null,"Utvikling (f. eks. utforming og utvikling av et tredjepartsnettsted)",{"v":150000,"d":"kr 150,000.00"}]
[null,"Totale førstegangsinvesteringer",{"$f":"SUBTOTAL(109,InitialInvest[ÅR])","v":{"v":190000,"d":"kr 190,000.00"}}]
[]
["Skriv inn detaljer i tabellen Inntekter som starter i cellen til høyre. Neste instruksjon finnes i celle A24.","Inntekter fra nettsted","ÅR","1","2","3"]
[null,"Direkte salg",null,{"v":15000,"d":"kr 15,000.00"},{"v":50000,"d":"kr 50,000.00"},{"v":75000,"d":"kr 75,000.00"}]
[null,"Trinnvise salg som resultat av forbedret effektivitet fra kampanje/selger",null,{"v":25000,"d":"kr 25,000.00"},{"v":25000,"d":"kr 25,000.00"},{"v":25000,"d":"kr 25,000.00"}]
[null,"Trinnvise salg som resultat av økt partnerdeltakelse",null,{"v":25000,"d":"kr 25,000.00"},{"v":25000,"d":"kr 25,000.00"},{"v":25000,"d":"kr 25,000.00"}]
[null,"Reduserte reisekostnader",null,{"v":25000,"d":"kr 25,000.00"},{"v":25000,"d":"kr 25,000.00"},{"v":25000,"d":"kr 25,000.00"}]
[null,"Reduserte kostnader for kundeservice",null,{"v":50000,"d":"kr 50,000.00"},{"v":50000,"d":"kr 50,000.00"},{"v":50000,"d":"kr 50,000.00"}]
[null,"Totalinntekter",null,{"$f":"SUBTOTAL(109,Inntekter[1])","v":{"v":140000,"d":"kr 140,000.00"}},{"$f":"SUBTOTAL(109,Inntekter[2])","v":{"v":175000,"d":"kr 175,000.00"}},{"$f":"SUBTOTAL(109,Inntekter[3])","v":{"v":200000,"d":"kr 200,000.00"}}]
[]
["Skriv inn detaljer i tabellen Kostnader som starter i cellen til høyre. Verdier beregnes automatisk i celler som inneholder formler. Neste instruksjon finnes i celle A32.","Kostnader (bortsett fra førstegangskapitalinvesteringer)","ÅR","1","2","3"]
[null,"Kostnad for salg",null,{"v":7500,"d":"kr 7,500.00"},{"v":25000,"d":"kr 25,000.00"},{"v":37500,"d":"kr 37,500.00"}]
[null,"Vedlikehold",null,{"v":15000,"d":"kr 15,000.00"},{"v":15000,"d":"kr 15,000.00"},{"v":15000,"d":"kr 15,000.00"}]
[null,"Prosjektstyring, kundestøtte",null,{"v":35000,"d":"kr 35,000.00"},{"v":35000,"d":"kr 35,000.00"},{"v":35000,"d":"kr 35,000.00"}]
[null,"Annonsering på nettet, registrering av søkemotor",null,{"v":10000,"d":"kr 10,000.00"},{"v":10000,"d":"kr 10,000.00"},{"v":10000,"d":"kr 10,000.00"}]
[null,"Avskrivning på store utgifter (beregningen bruker tre år)",null,{"$f":"InitialInvest[[#Totals],[ÅR]]/3","v":{"v":63333.333333333336,"d":"kr 63,333.33"}},{"$f":"InitialInvest[[#Totals],[ÅR]]/3","v":{"v":63333.333333333336,"d":"kr 63,333.33"}},{"$f":"InitialInvest[[#Totals],[ÅR]]/3","v":{"v":63333.333333333336,"d":"kr 63,333.33"}}]
[null,"Totale kostnader",null,{"$f":"SUBTOTAL(109,Kostnader[1])","v":{"v":130833.33333333334,"d":"kr 130,833.33"}},{"$f":"SUBTOTAL(109,Kostnader[2])","v":{"v":148333.33333333334,"d":"kr 148,333.33"}},{"$f":"SUBTOTAL(109,Kostnader[3])","v":{"v":160833.33333333334,"d":"kr 160,833.33"}}]
[]
["Verdier beregnes automatisk i tabellen Totaler som starter i cellen til høyre. Neste instruksjon finnes i celle A40.","Totaler","ÅR","1","2","3"]
[null,"Nettoinntekter (kostnader)",null,{"$f":"Inntekter[[#Totals],[1]]-Kostnader[[#Totals],[1]]","v":{"v":9166.666666666657,"d":"kr 9,166.67"}},{"$f":"Inntekter[[#Totals],[2]]-Kostnader[[#Totals],[2]]","v":{"v":26666.666666666657,"d":"kr 26,666.67"}},{"$f":"Inntekter[[#Totals],[3]]-Kostnader[[#Totals],[3]]","v":{"v":39166.66666666666,"d":"kr 39,166.67"}}]
[null,"Skatt",null,{"$f":"D33*Skattesats","v":{"v":2749.999999999997,"d":"kr 2,750.00"}},{"$f":"E33*Skattesats","v":{"v":7999.999999999996,"d":"kr 8,000.00"}},{"$f":"F33*Skattesats","v":{"v":11749.999999999996,"d":"kr 11,750.00"}}]
[null,"Verdi etter skatt",null,{"$f":"D33-D34","v":{"v":6416.666666666661,"d":"kr 6,416.67"}},{"v":18666.66666666666,"d":"kr 18,666.67"},{"v":27416.66666666666,"d":"kr 27,416.67"}]
[null,"Avskrivning lagt til",null,{"$f":"D29","v":{"v":63333.333333333336,"d":"kr 63,333.33"}},{"$f":"E29","v":{"v":63333.333333333336,"d":"kr 63,333.33"}},{"$f":"F29","v":{"v":63333.333333333336,"d":"kr 63,333.33"}}]
[null,"Kontantstrøm",{"$f":"-InitialInvest[[#Totals],[ÅR]]","v":{"v":-190000,"d":"-kr 190,000.00"}},{"$f":"D35+D36","v":{"v":69750,"d":"kr 69,750.00"}},{"v":82000,"d":"kr 82,000.00"},{"v":90750,"d":"kr 90,750.00"}]
[null,"Akkumulert kontantstrøm",{"$f":"C37","v":{"v":-190000,"d":"-kr 190,000.00"}},{"$f":"C38+D37","v":{"v":-120250,"d":"-kr 120,250.00"}},{"v":-38250,"d":"-kr 38,250.00"},{"v":52500,"d":"kr 52,500.00"}]
[]
["Evalueringsmåledata beregnes automatisk i tabellen Måledata som starter i cellen til høyre.","Evalueringsmåledata","Verdier"]
[null,"Netto nåverdi (NPV)",{"$f":"C37+(NPV(ROR,D37:F37))","v":{"v":9359.504132231377,"d":"kr 9,359.50"}}]
[null,"Internrente (IRR)",{"$f":"IRR(C37:F37)","v":{"v":0.12655165144706393,"d":"12.66%"}}]
[null,"Tilbakebetalingstid (i år)",{"$f":"IF(F38<=0,\"Overskrider 3 år\",IF(E38<=0,(F37-F38)/F37+2,IF(D38<=0,(E37-E38)/E37+1,IF(C38<=0,(D37-D38)/D37,\"IT\"))))","v":{"v":2.4214876033057853,"d":"2.42"}}]